Workbook

Sheet controle ponto
F2: CONTROLE DE PONTO: | I2: =TEXT(B8,"mmmm")&" de "&ano_p -> janeiro de 2024
C6: Empregado : | J6: Setor : | O6: Unidade : | V6: JORNADA CONTRATUAL | Y6: CARTÃO PONTO ESPELHO
B7: Data | C7: Dia Semana | D7: Folgas | E7: Entrada | F7: Saída | G7: Entrada | H7: Saída | I7: Entrada | J7: Saída | K7: Horas Diurnas | L7: H. Not. s/ red. | M7: Hora Ficta | N7: Adicional Noturno | O7: H. Trab. | P7: H. Normais | Q7: Ausências Injustificadas | R7: H. Extras | S7: HE 100% | V7: Dia da Semana | W7: Limite | Y7: Entrada | Z7: Saída | AA7: Entrada | AB7: Saída | AC7: Entrada | AD7: Saída
A8: =IF(B8="","",IF(C8<>"feriado",WEEKDAY(B8),8)) -> 8 | B8: =inicio -> 2024-01-01 | C8: =IF(B8="","",IF(COUNTIF(fer,B8)>0,"feriado",B8)) -> feriado | E8: 0.3333333333 | F8: 0.5 | G8: 0.5416666667 | H8: 0.875 | I8: 0.9166666667 | J8: 0.2083333333 | K8: =IF(B8="","",ROUND(O8-N8,5)) -> 12:00:00 | L8: =IF(B8="","",IF(AND(E8="",F8=""),0,MAX(ININOT,MIN(FIMNOT+1,F8+(E8>F8)))-MAX(ININOT,E8)+(MIN(FIMNOT,F8+(E8>F8))-MIN(FIMNOT,E8)))+IF(AND(G8="",H8=""),0,MAX(ININOT,MIN(FIMNOT+1,H8+(G8>H8)))-MAX(ININOT,G8)+(MIN(FIMNOT,H8+(G8>H8))-MIN(FIMNOT,G8)))+IF(AND(I8="",J8=""),0,MAX(ININOT,MIN(FIMNOT+1,J8+(I8>J8)))-MAX(ININOT,I8)+(MIN(FIMNOT,J8+(I8>J8))-MIN(FIMNOT,I8)))) -> 07:00:00 | M8: =IF(B8="","",(L8/7*8)-L8) -> 01:00:00 | N8: =IF(B8="","",L8+M8) -> 08:00:00 | O8: =IF(B8="","",MOD((F8-E8)+(H8-G8)+(J8-I8),1)+M8) -> 20:00:00 | P8: =IF(B8="","",IF(D8="F",$W$16,VLOOKUP(A8,jornada,3))) -> 00:00:00 | Q8: =IF(B8="","",IF(AND(D8="A",P8>O8),P8-O8,"")) ->  | R8: =IF(B8="","",IF(AND(WEEKDAY(B8,1)=7,P8=0,D8<>"F"),MAX(0,O8-P8),IF(P8=0,0,MAX(0,O8-P8)))) -> 00:00:00 | S8: =IF(B8="","",IF(AND(WEEKDAY(B8,1)=7,P8=0,D8<>"F"),0,IF(P8=0,O8,0))) -> 20:00:00 | U8: 1 | V8: domingo | W8: 00:00:00 | Y8: =IF(B8="","",IF($E8="",0,TIME(INT(E8/100),MOD(E8,100),0))) -> 00:00:00 | Z8: =IF(B8="","",IF($F8="",0,TIME(INT(F8/100),MOD(F8,100),0))) -> 00:00:00 | AA8: =IF(B8="","",IF($G8="",0,TIME(INT(G8/100),MOD(G8,100),0))) -> 00:00:00 | AB8: =IF(B8="","",IF($H8="",0,TIME(INT(H8/100),MOD(H8,100),0))) -> 00:00:00 | AC8: =IF(B8="","",IF($I8="",0,TIME(INT(I8/100),MOD(I8,100),0))) -> 00:00:00 | AD8: =IF(B8="","",IF($J8="",0,TIME(INT(J8/100),MOD(J8,100),0))) -> 00:00:00
A9: =IF(B9="","",IF(C9<>"feriado",WEEKDAY(B9),8)) -> 3 | B9: =B8+1 -> 2024-01-02 | C9: =IF(B9="","",IF(COUNTIF(fer,B9)>0,"feriado",B9)) -> 2024-01-02 | E9: 0.3333333333 | F9: 0.5 | G9: 0.75 | H9: 1 | K9: =IF(B9="","",ROUND(O9-N9,5)) -> 07:59:59.712 | L9: 02:00:00 | M9: =IF(B9="","",(L9/7*8)-L9) -> 00:17:08.571 | N9: =IF(B9="","",L9+M9) -> 02:17:08.571 | O9: =IF(B9="","",MOD((F9-E9)+(H9-G9)+(J9-I9),1)+M9) -> 10:17:08.571 | P9: 08:00:00 | Q9: =IF(B9="","",IF(AND(D9="A",P9>O9),P9-O9,"")) ->  | R9: =IF(B9="","",IF(AND(WEEKDAY(B9,1)=7,P9=0,D9<>"F"),MAX(0,O9-P9),IF(P9=0,0,MAX(0,O9-P9)))) -> 02:17:08.571 | S9: =IF(B9="","",IF(AND(WEEKDAY(B9,1)=7,P9=0,D9<>"F"),0,IF(P9=0,O9,0))) -> 00:00:00 | U9: 2 | V9: Segunda-feira | W9: 08:00:00 | Y9: =IF(B9="","",IF($E9="",0,TIME(INT(E9/100),MOD(E9,100),0))) -> 00:00:00 | Z9: =IF(B9="","",IF($F9="",0,TIME(INT(F9/100),MOD(F9,100),0))) -> 00:00:00 | AA9: =IF(B9="","",IF($G9="",0,TIME(INT(G9/100),MOD(G9,100),0))) -> 00:00:00 | AB9: =IF(B9="","",IF($H9="",0,TIME(INT(H9/100),MOD(H9,100),0))) -> 00:01:00 | AC9: =IF(B9="","",IF($I9="",0,TIME(INT(I9/100),MOD(I9,100),0))) -> 00:00:00 | AD9: =IF(B9="","",IF($J9="",0,TIME(INT(J9/100),MOD(J9,100),0))) -> 00:00:00
A10: 4 | B10: =B9+1 -> 2024-01-03 | C10: 2024-01-03 | D10: A | E10: 0.3333333333 | F10: 0.5 | I10: 0.9166666667 | J10: 0.2083333333 | K10: 04:00:00.288 | L10: 07:00:00 | M10: 01:00:00 | N10: 08:00:00 | O10: 12:00:00 | P10: 08:00:00 | R10: 04:00:00 | S10: 00:00:00 | U10: 3 | V10: Terça-feira | W10: 08:00:00 | Y10: 00:00:00 | Z10: 00:00:00 | AA10: 00:00:00 | AB10: 00:00:00 | AC10: 00:00:00 | AD10: 00:00:00
A11: 5 | B11: =B10+1 -> 2024-01-04 | C11: 2024-01-04 | E11: 0.3333333333 | F11: 0.625 | G11: 0.9166666667 | H11: 0.2083333333 | K11: 07:00:00.288 | L11: 07:00:00 | M11: 01:00:00 | N11: 08:00:00 | O11: 15:00:00 | P11: 08:00:00 | R11: 07:00:00 | S11: 00:00:00 | U11: 4 | V11: Quarta-feira | W11: 08:00:00 | Y11: 00:00:00 | Z11: 00:00:00 | AA11: 00:00:00 | AB11: 00:00:00 | AC11: 00:00:00 | AD11: 00:00:00
A12: 6 | B12: =B11+1 -> 2024-01-05 | C12: 2024-01-05 | E12: 0.9166666667 | F12: 0.2083333333 | G12: 0.25 | H12: 0.5 | K12: 06:00:00 | L12: 07:00:00 | M12: 01:00:00 | N12: 08:00:00 | O12: 14:00:00 | P12: 08:00:00 | R12: 06:00:00 | S12: 00:00:00 | U12: 5 | V12: Quinta-feira | W12: 08:00:00 | Y12: 00:00:00 | Z12: 00:00:00 | AA12: 00:00:00 | AB12: 00:00:00 | AC12: 00:00:00 | AD12: 00:00:00
A13: 7 | B13: =B12+1 -> 2024-01-06 | C13: 2024-01-06 | D13: F | K13: 00:00:00 | L13: 00:00:00 | M13: 00:00:00 | N13: 00:00:00 | O13: 00:00:00 | P13: 00:00:00 | R13: 00:00:00 | S13: 00:00:00 | U13: 6 | V13: Sexta-feira | W13: 08:00:00 | Y13: 00:00:00 | Z13: 00:00:00 | AA13: 00:00:00 | AB13: 00:00:00 | AC13: 00:00:00 | AD13: 00:00:00
A14: 1 | B14: 2024-01-07 | C14: 2024-01-07 | K14: 00:00:00 | L14: 00:00:00 | M14: 00:00:00 | N14: 00:00:00 | O14: 00:00:00 | P14: 00:00:00 | R14: 00:00:00 | S14: 00:00:00 | U14: 7 | V14: Sábado | W14: 04:00:00 | Y14: 00:00:00 | Z14: 00:00:00 | AA14: 00:00:00 | AB14: 00:00:00 | AC14: 00:00:00 | AD14: 00:00:00
A15: 2 | B15: 2024-01-08 | C15: 2024-01-08 | K15: 00:00:00 | L15: 00:00:00 | M15: 00:00:00 | N15: 00:00:00 | O15: 00:00:00 | P15: 08:00:00 | R15: 00:00:00 | S15: 00:00:00 | U15: 8 | V15: Feriados | W15: 00:00:00 | Y15: 00:00:00 | Z15: 00:00:00 | AA15: 00:00:00 | AB15: 00:00:00 | AC15: 00:00:00 | AD15: 00:00:00
A16: 3 | B16: 2024-01-09 | C16: 2024-01-09 | K16: 00:00:00 | L16: 00:00:00 | M16: 00:00:00 | N16: 00:00:00 | O16: 00:00:00 | P16: 08:00:00 | R16: 00:00:00 | S16: 00:00:00 | V16: Folgas | W16: 00:00:00 | Y16: 00:00:00 | Z16: 00:00:00 | AA16: 00:00:00 | AB16: 00:00:00 | AC16: 00:00:00 | AD16: 00:00:00
A17: 4 | B17: 2024-01-10 | C17: 2024-01-10 | K17: 00:00:00 | L17: 00:00:00 | M17: 00:00:00 | N17: 00:00:00 | O17: 00:00:00 | P17: 08:00:00 | R17: 00:00:00 | S17: 00:00:00 | V17: HORÁRIO NOTURNO | Y17: 00:00:00 | Z17: 00:00:00 | AA17: 00:00:00 | AB17: 00:00:00 | AC17: 00:00:00 | AD17: 00:00:00
A18: 5 | B18: 2024-01-11 | C18: 2024-01-11 | K18: 00:00:00 | L18: 00:00:00 | M18: 00:00:00 | N18: 00:00:00 | O18: 00:00:00 | P18: 08:00:00 | R18: 00:00:00 | S18: 00:00:00 | V18: Início | W18: 22:00:00 | Y18: 00:00:00 | Z18: 00:00:00 | AA18: 00:00:00 | AB18: 00:00:00 | AC18: 00:00:00 | AD18: 00:00:00
A19: 6 | B19: 2024-01-12 | C19: 2024-01-12 | K19: 00:00:00 | L19: 00:00:00 | M19: 00:00:00 | N19: 00:00:00 | O19: 00:00:00 | P19: 08:00:00 | R19: 00:00:00 | S19: 00:00:00 | V19: Término | W19: 05:00:00 | Y19: 00:00:00 | Z19: 00:00:00 | AA19: 00:00:00 | AB19: 00:00:00 | AC19: 00:00:00 | AD19: 00:00:00
A20: 7 | B20: 2024-01-13 | C20: 2024-01-13 | D20: F | K20: 00:00:00 | L20: 00:00:00 | M20: 00:00:00 | N20: 00:00:00 | O20: 00:00:00 | P20: 00:00:00 | R20: 00:00:00 | S20: 00:00:00 | V20: FECHAMENTO DO PONTO | Y20: 00:00:00 | Z20: 00:00:00 | AA20: 00:00:00 | AB20: 00:00:00 | AC20: 00:00:00 | AD20: 00:00:00
A21: 1 | B21: 2024-01-14 | C21: 2024-01-14 | D21: A | K21: 00:00:00 | L21: 00:00:00 | M21: 00:00:00 | N21: 00:00:00 | O21: 00:00:00 | P21: 00:00:00 | R21: 00:00:00 | S21: 00:00:00 | V21: Dia do fechamento do ponto: | Y21: 00:00:00 | Z21: 00:00:00 | AA21: 00:00:00 | AB21: 00:00:00 | AC21: 00:00:00 | AD21: 00:00:00
A22: 2 | B22: 2024-01-15 | C22: 2024-01-15 | K22: 00:00:00 | L22: 00:00:00 | M22: 00:00:00 | N22: 00:00:00 | O22: 00:00:00 | P22: 08:00:00 | R22: 00:00:00 | S22: 00:00:00 | V22: Selecione o ano : | W22: 2024 | Y22: 00:00:00 | Z22: 00:00:00 | AA22: 00:00:00 | AB22: 00:00:00 | AC22: 00:00:00 | AD22: 00:00:00
A23: 3 | B23: 2024-01-16 | C23: 2024-01-16 | K23: 00:00:00 | L23: 00:00:00 | M23: 00:00:00 | N23: 00:00:00 | O23: 00:00:00 | P23: 08:00:00 | R23: 00:00:00 | S23: 00:00:00 | V23: Selecione o mês : | W23: 1 | Y23: 00:00:00 | Z23: 00:00:00 | AA23: 00:00:00 | AB23: 00:00:00 | AC23: 00:00:00 | AD23: 00:00:00
A24: 4 | B24: 2024-01-17 | C24: 2024-01-17 | K24: 00:00:00 | L24: 00:00:00 | M24: 00:00:00 | N24: 00:00:00 | O24: 00:00:00 | P24: 08:00:00 | R24: 00:00:00 | S24: 00:00:00 | Y24: 00:00:00 | Z24: 00:00:00 | AA24: 00:00:00 | AB24: 00:00:00 | AC24: 00:00:00 | AD24: 00:00:00
A25: 5 | B25: 2024-01-18 | C25: 2024-01-18 | K25: 00:00:00 | L25: 00:00:00 | M25: 00:00:00 | N25: 00:00:00 | O25: 00:00:00 | P25: 08:00:00 | R25: 00:00:00 | S25: 00:00:00 | Y25: 00:00:00 | Z25: 00:00:00 | AA25: 00:00:00 | AB25: 00:00:00 | AC25: 00:00:00 | AD25: 00:00:00
A26: 6 | B26: 2024-01-19 | C26: 2024-01-19 | K26: 00:00:00 | L26: 00:00:00 | M26: 00:00:00 | N26: 00:00:00 | O26: 00:00:00 | P26: 08:00:00 | R26: 00:00:00 | S26: 00:00:00 | Y26: 00:00:00 | Z26: 00:00:00 | AA26: 00:00:00 | AB26: 00:00:00 | AC26: 00:00:00 | AD26: 00:00:00
A27: 7 | B27: 2024-01-20 | C27: 2024-01-20 | D27: F | K27: 00:00:00 | L27: 00:00:00 | M27: 00:00:00 | N27: 00:00:00 | O27: =IF(B27="","",MOD((F27-E27)+(H27-G27)+(J27-I27),1)+M27) -> 00:00:00 | P27: 00:00:00 | R27: 00:00:00 | S27: 00:00:00 | Y27: 00:00:00 | Z27: 00:00:00 | AA27: 00:00:00 | AB27: 00:00:00 | AC27: 00:00:00 | AD27: 00:00:00
A28: 1 | B28: 2024-01-21 | C28: 2024-01-21 | K28: 00:00:00 | L28: 00:00:00 | M28: 00:00:00 | N28: 00:00:00 | O28: 00:00:00 | P28: 00:00:00 | R28: 00:00:00 | S28: 00:00:00 | Y28: 00:00:00 | Z28: 00:00:00 | AA28: 00:00:00 | AB28: 00:00:00 | AC28: 00:00:00 | AD28: 00:00:00
A29: 2 | B29: 2024-01-22 | C29: 2024-01-22 | K29: 00:00:00 | L29: 00:00:00 | M29: 00:00:00 | N29: 00:00:00 | O29: 00:00:00 | P29: 08:00:00 | R29: 00:00:00 | S29: 00:00:00 | Y29: 00:00:00 | Z29: 00:00:00 | AA29: 00:00:00 | AB29: 00:00:00 | AC29: 00:00:00 | AD29: 00:00:00
A30: 3 | B30: 2024-01-23 | C30: 2024-01-23 | D30: A | K30: 00:00:00 | L30: 00:00:00 | M30: 00:00:00 | N30: 00:00:00 | O30: 00:00:00 | P30: 08:00:00 | Q30: 08:00:00 | R30: 00:00:00 | S30: 00:00:00 | Y30: 00:00:00 | Z30: 00:00:00 | AA30: 00:00:00 | AB30: 00:00:00 | AC30: 00:00:00 | AD30: 00:00:00
A31: 4 | B31: 2024-01-24 | C31: =IF(B31="","",IF(COUNTIF(fer,B31)>0,"feriado",B31)) -> 2024-01-24 | K31: 00:00:00 | L31: 00:00:00 | M31: 00:00:00 | N31: 00:00:00 | O31: 00:00:00 | P31: 08:00:00 | R31: 00:00:00 | S31: 00:00:00 | Y31: 00:00:00 | Z31: 00:00:00 | AA31: 00:00:00 | AB31: 00:00:00 | AC31: 00:00:00 | AD31: 00:00:00
A32: 5 | B32: 2024-01-25 | C32: 2024-01-25 | K32: 00:00:00 | L32: 00:00:00 | M32: 00:00:00 | N32: 00:00:00 | O32: 00:00:00 | P32: 08:00:00 | R32: 00:00:00 | S32: 00:00:00 | Y32: 00:00:00 | Z32: 00:00:00 | AA32: 00:00:00 | AB32: 00:00:00 | AC32: 00:00:00 | AD32: 00:00:00
A33: 6 | B33: 2024-01-26 | C33: 2024-01-26 | K33: 00:00:00 | L33: 00:00:00 | M33: 00:00:00 | N33: 00:00:00 | O33: 00:00:00 | P33: 08:00:00 | R33: 00:00:00 | S33: 00:00:00 | Y33: 00:00:00 | Z33: 00:00:00 | AA33: 00:00:00 | AB33: 00:00:00 | AC33: 00:00:00 | AD33: 00:00:00
A34: 7 | B34: 2024-01-27 | C34: 2024-01-27 | D34: F | K34: 00:00:00 | L34: 00:00:00 | M34: 00:00:00 | N34: 00:00:00 | O34: 00:00:00 | P34: 00:00:00 | R34: 00:00:00 | S34: 00:00:00 | Y34: 00:00:00 | Z34: 00:00:00 | AA34: 00:00:00 | AB34: 00:00:00 | AC34: 00:00:00 | AD34: 00:00:00
A35: 1 | B35: 2024-01-28 | C35: 2024-01-28 | K35: 00:00:00 | L35: 00:00:00 | M35: 00:00:00 | N35: 00:00:00 | O35: 00:00:00 | P35: 00:00:00 | R35: 00:00:00 | S35: 00:00:00 | Y35: 00:00:00 | Z35: 00:00:00 | AA35: 00:00:00 | AB35: 00:00:00 | AC35: 00:00:00 | AD35: 00:00:00
A36: 2 | B36: =IF(B35="","",IF(B35>=fim,"",B35+1)) -> 2024-01-29 | C36: 2024-01-29 | K36: 00:00:00 | L36: 00:00:00 | M36: 00:00:00 | N36: 00:00:00 | O36: 00:00:00 | P36: 08:00:00 | R36: 00:00:00 | S36: 00:00:00 | Y36: 00:00:00 | Z36: 00:00:00 | AA36: 00:00:00 | AB36: 00:00:00 | AC36: 00:00:00 | AD36: 00:00:00
A37: 3 | B37: =IF(B36="","",IF(B36>=fim,"",B36+1)) -> 2024-01-30 | C37: 2024-01-30 | K37: 00:00:00 | L37: 00:00:00 | M37: 00:00:00 | N37: 00:00:00 | O37: 00:00:00 | P37: 08:00:00 | R37: 00:00:00 | S37: 00:00:00 | Y37: 00:00:00 | Z37: 00:00:00 | AA37: 00:00:00 | AB37: 00:00:00 | AC37: 00:00:00 | AD37: 00:00:00
A38: 4 | B38: =IF(B37="","",IF(B37>=fim,"",B37+1)) -> 2024-01-31 | C38: 2024-01-31 | K38: 00:00:00 | L38: 00:00:00 | M38: 00:00:00 | N38: 00:00:00 | O38: 00:00:00 | P38: 08:00:00 | R38: 00:00:00 | S38: 00:00:00 | Y38: 00:00:00 | Z38: 00:00:00 | AA38: 00:00:00 | AB38: 00:00:00 | AC38: 00:00:00 | AD38: 00:00:00
B39: Início | C39: Término | E39: fer | F39: dom | G39: mês | H39: dias úteis | K39: repousos | L39: dsr | M39: Total: | N39: =SUM(N8:N38) -> 1.428571429 | O39: =SUM(O8:O38) -> 2.970238095 | P39: Total: | Q39: =SUM(Q8:Q38) -> 0.3333333333 | R39: =SUM(R8:R38) -> 0.8035714286 | S39: =SUM(S8:S38) -> 0.8333333333
B40: =B8 -> 2024-01-01 | C40: =MAX(B8:B38) -> 2024-01-31 | E40: =COUNTIF(C8:C38,"feriado") -> 1 | F40: =SUMPRODUCT((WEEKDAY(ROW(INDIRECT($B40&":"&$C40)))=1)*(COUNTIF(fer,ROW(INDIRECT($B40&":"&$C40)))=0)) -> 4 | G40: =C40-B40+1 -> 31 | H40: =G40-K40 -> 26 | K40: =E40+F40 -> 5 | L40: =H40&"/"&K40 -> 26/5 | M40: Decimal: | N40: =N39*24 -> 34.29 | O40: =O39*24 -> 71.29 | P40: Decimal: | R40: =R39*24 -> 19.29 | S40: =S39*24 -> 20.00
B41: =IF(dia_f="","",DATE(ano_p,mês_p,1)) ->  | C41: =IF(dia_f="","",DATE(ano_p,mês_p+1,0)) ->  | E41: =IF(B41="","",SUMPRODUCT(((WEEKDAY(fer)>1))*(fer>=B41)*(fer<=C41))) ->  | F41: =IF(B41="","",SUMPRODUCT((WEEKDAY(ROW(INDIRECT($B41&":"&$C41)))=1)*1)) ->  | G41: =IF(B41="","",DAY(C41)) ->  | H41: =IF(B41="","",SUMPRODUCT((WEEKDAY(ROW(INDIRECT(B41&":"&C41)))>1)*(COUNTIF(fer,ROW(INDIRECT(B41&":"&C41)))=0))) ->  | K41: =IF(B41="","",E41+F41) ->  | L41: =IF(B41="","",H41&"/"&K41) ->  | M41: Dsr: | N41: =N40/$H$40*$K$40 -> 6.59 | Q41: Dsr: | R41: =R40/$H$40*$K$40 -> 3.71 | S41: =S40/$H$40*$K$40 -> 3.85
M42: =IF(B41="","","Dsr mês:") ->  | N42: =IF(B41="","",N40/H41*K41) ->  | Q42: =IF(B41="","","Dsr mês:") ->  | R42: =IF(B41="","",R40/$H$41*$K$41) ->  | S42: =IF(B41="","",S40/$H$41*$K$41) -> 
V116: =IF(dia_f="",DATE(ano_p,mês_p,1),DATE(ano_p,mês_p-1,dia_f+1)) -> 2024-01-01 | W116: Data de início:
V117: =IF(dia_f="",DATE(ano_p,mês_p+1,0),(DATE($W$22,mês_p,dia_f))) -> 2024-01-31 | W117: Data final:
D119: Meses | F119: Anos
D120: 1 | F120: 2020
D121: 2 | F121: 2021
D122: 3 | F122: 2022
D123: 4 | F123: 2023
D124: 5 | F124: 2024
D125: 6 | F125: 2025
D126: 7 | F126: 2026
D127: 8 | F127: 2027
D128: 9 | F128: 2028
D129: 10 | F129: 2029
D130: 11 | F130: 2030
D131: 12 | F131: 2031

Sheet Feriados
A1: Ano | C1: Páscoa | D1: Horário Noturno
B2: =ano_p -> 2024 | C2: =ROUND(DATE($B$2,4,MOD(234-11*MOD($B$2,19),30))/7,)*7-6 -> 2024-03-31 | D2: Início: | E2: =ININOT -> 22:00:00
D3: Fim: | E3: =FIMNOT -> 05:00:00
A4: Feriados Nacionais, Municipais e Estadual
A5: Feriados Nacionais | B5: x | C5: Ano Novo | D5: =IF($B$5="X",DATE($B$2-1,1,1),DATE(1905,1,1)) -> 2023-01-01 | E5: =IF($B$5="X",DATE($B$2,1,1),DATE(1905,1,1)) -> 2024-01-01 | F5: =IF($B$5="X",DATE($B$2+1,1,1),DATE(1905,1,1)) -> 2025-01-01 | G5: =ROUND(DATE($B$2-1,4,MOD(234-11*MOD($B$2-1,19),30))/7,)*7-6 -> 2023-04-09 | V5: 1 | W5: 1 | X5: =DATE(1905,1,1) -> 1905-01-01
B6: x | C6: Tiradentes | D6: =IF($B$6="X",DATE($B$2-1,4,21),DATE(1905,1,1)) -> 2023-04-21 | E6: =IF($B$6="X",DATE($B$2,4,21),DATE(1905,1,1)) -> 2024-04-21 | F6: =IF($B$6="X",DATE($B$2+1,4,21),DATE(1905,1,1)) -> 2025-04-21 | G6: =ROUND(DATE($B$2+1,4,MOD(234-11*MOD($B$2+1,19),30))/7,)*7-6 -> 2025-04-20 | V6: 2 | W6: 2
B7: x | C7: Dia do Trabalho | D7: =IF($B$7="X",DATE($B$2-1,5,1),DATE(1905,1,1)) -> 2023-05-01 | E7: =IF($B$7="X",DATE($B$2,5,1),DATE(1905,1,1)) -> 2024-05-01 | F7: =IF($B$7="X",DATE($B$2+1,5,1),DATE(1905,1,1)) -> 2025-05-01 | V7: 3 | W7: 3
B8: x | C8: Independência | D8: =IF($B$8="X",DATE($B$2-1,9,7),DATE(1905,1,1)) -> 2023-09-07 | E8: =IF($B$8="X",DATE($B$2,9,7),DATE(1905,1,1)) -> 2024-09-07 | F8: =IF($B$8="X",DATE($B$2+1,9,7),DATE(1905,1,1)) -> 2025-09-07 | V8: 4 | W8: 4
B9: x | C9: Padroeira do Brasil | D9: =IF($B$9="X",DATE($B$2-1,10,12),DATE(1905,1,1)) -> 2023-10-12 | E9: =IF($B$9="X",DATE($B$2,10,12),DATE(1905,1,1)) -> 2024-10-12 | F9: =IF($B$9="X",DATE($B$2+1,10,12),DATE(1905,1,1)) -> 2025-10-12 | V9: 5 | W9: 5
B10: x | C10: Finados | D10: =IF($B$10="X",DATE($B$2-1,11,2),DATE(1905,1,1)) -> 2023-11-02 | E10: =IF($B$10="X",DATE($B$2,11,2),DATE(1905,1,1)) -> 2024-11-02 | F10: =IF($B$10="X",DATE($B$2+1,11,2),DATE(1905,1,1)) -> 2025-11-02 | V10: 6 | W10: 6
B11: x | C11: Proclamação da República | D11: =IF($B$11="X",DATE($B$2-1,11,15),DATE(1905,1,1)) -> 2023-11-15 | E11: =IF($B$11="X",DATE($B$2,11,15),DATE(1905,1,1)) -> 2024-11-15 | F11: =IF($B$11="X",DATE($B$2+1,11,15),DATE(1905,1,1)) -> 2025-11-15 | V11: 7 | W11: 7
B12: x | C12: Consciência Negra | D12: =IF($B$12="X",DATE($B$2-1,11,20),DATE(1905,1,1)) -> 2023-11-20 | E12: =IF($B$12="X",DATE($B$2,11,20),DATE(1905,1,1)) -> 2024-11-20 | F12: =IF($B$12="X",DATE($B$2+1,11,20),DATE(1905,1,1)) -> 2025-11-20
B13: x | C13: Natal | D13: =IF($B$13="X",DATE($B$2-1,12,25),DATE(1905,1,1)) -> 2023-12-25 | E13: =IF($B$13="X",DATE($B$2,12,25),DATE(1905,1,1)) -> 2024-12-25 | F13: =IF($B$13="X",DATE($B$2+1,12,25),DATE(1905,1,1)) -> 2025-12-25 | V13: 8 | W13: 8
A14: Móveis | B14: x | C14: Sexta-Feira Santa | D14: =IF($B$14="X",$G$5-2,DATE(1905,1,1)) -> 2023-04-07 | E14: =IF($B$14="X",páscoa-2,DATE(1905,1,1)) -> 2024-03-29 | F14: =IF($B$14="X",$G$6-2,DATE(1905,1,1)) -> 2025-04-18 | V14: 9 | W14: 9
B15: x | C15: Corpus Christi | D15: =IF($B$15="X",$G$5+60,DATE(1905,1,1)) -> 2023-06-08 | E15: =IF($B$15="X",páscoa+60,DATE(1905,1,1)) -> 2024-05-30 | F15: =IF($B$15="X",$G$6+60,DATE(1905,1,1)) -> 2025-06-19 | V15: 10 | W15: 10
B16: x | C16: Terça-Feira de Carnaval | D16: =IF($B$16="X",$G$5-47,DATE(1905,1,1)) -> 2023-02-21 | E16: =IF($B$16="X",páscoa-47,DATE(1905,1,1)) -> 2024-02-13 | F16: =IF($B$16="X",$G$6-47,DATE(1905,1,1)) -> 2025-03-04 | G16: DIA | H16: MÊS | V16: 11 | W16: 11
A17: Fixos | B17: x | C17: Feriado 1 | D17: =IF($B$17="X",DATE($B$2-1,$H$17,$G$17),DATE(1905,1,1)) -> 2023-06-10 | E17: =IF($B$17="X",DATE($B$2,$H$17,$G$17),DATE(1905,1,1)) -> 2024-06-10 | F17: =IF($B$17="X",DATE($B$2+1,$H$17,$G$17),DATE(1905,1,1)) -> 2025-06-10 | G17: 10 | H17: 6 | V17: 12 | W17: 12
B18: x | C18: Feriado 2 | D18: =IF($B$18="X",DATE($B$2-1,H18,G18),DATE(1905,1,1)) -> 2023-06-24 | E18: =IF($B$18="X",DATE($B$2,H18,G18),DATE(1905,1,1)) -> 2024-06-24 | F18: =IF($B$18="X",DATE($B$2+1,H18,G18),DATE(1905,1,1)) -> 2025-06-24 | G18: 24 | H18: 6 | W18: 13
C19: Feriado 3 | D19: =IF($B$19="X",DATE($B$2-1,H19,G19),DATE(1905,1,1)) -> 1905-01-01 | E19: =IF($B$19="X",DATE($B$2,H19,G19),DATE(1905,1,1)) -> 1905-01-01 | F19: =IF($B$19="X",DATE($B$2,H19,G19),DATE(1905,1,1)) -> 1905-01-01 | G19: 5 | H19: 8 | W19: 14
C20: Feriado 4 | D20: =IF($B$20="X",DATE($B$2-1,H20,G20),DATE(1905,1,1)) -> 1905-01-01 | E20: =IF($B$20="X",DATE($B$2,H20,G20),DATE(1905,1,1)) -> 1905-01-01 | F20: =IF($B$20="X",DATE($B$2+1,H20,G20),DATE(1905,1,1)) -> 1905-01-01 | G20: 10 | H20: 5 | W20: 15
W21: 16
W22: 17
W23: 18
W24: 19
W25: 20
W26: 21
W27: 22
W28: 23
W29: 24
W30: 25
W31: 26
W32: 27
W33: 28
W34: 29
W35: 30
W36: 31
